[Event "CZE-ch 2020"]
[Site "Pilsen"]
[Date "2020.08.26"]
[Round "4.9"]
[White "Hollan, Martin"]
[Black "Gloser, David"]
[Result "1-0"]
[ECO "A48"]
[WhiteElo "2346"]
[BlackElo "2248"]
[Annotator "ChessBase"]
[PlyCount "63"]
[EventDate "2020.08.23"]
[EventType "swiss"]
[EventCountry "CZE"]
[SourceTitle "playchess.com"]
[Source "ChessBase"]
[SourceQuality "1"]
[TimeControl "40/5400+30:1800+30"]

1. d4 {[%emt 0:00:00]} Nf6 {[%emt 0:00:00]} 2. Nf3 {[%emt 0:00:00]} g6 {[%emt 0:00:11]} 3. c4 {[%emt 0:00:00]} c5 {[%emt 0:00:22]} 4. g3 {[%emt 0:00:00]} b6 {[%emt 0:07:33]} 5. Bg2 {[%emt 0:01:11]} Bb7 {[%emt 0:01:02]} 6. d5 {[%emt 0:00:08]} Bg7 {[%emt 0:01:48]} 7. O-O {[%emt 0:00:35]} O-O {[%emt 0:01:19]} 8. Nc3 {[%emt 0:00:56]} d6 {[%emt 0:01:15]} 9. h3 {[%emt 0:01:33]} Nbd7 {[%emt 0:02:53]} 10. Be3 {[%emt 0:06:41]} Ne8 {[%emt 0:06:36]} 11. Qd2 {[%emt 0:01:48]} Nc7 {[%emt 0:01:51]} 12. Bh6 {[%emt 0:01:23]} b5 {[%emt 0:04:31]} 13. Bxg7 {[%emt 0:01:32]} Kxg7 {[%emt 0:00:07]} 14. cxb5 {[%emt 0:02:52]} a6 {[%emt 0:04:06]} 15. bxa6 {[%emt 0:00:55]} Rxa6 {[%emt 0:00:44]} 16. e4 {[%emt 0:01:27]} Qa8 {[%emt 0:04:38]} 17. Nh4 {[%emt 0:01:22]} f6 {[%emt 0:08:29]} 18. f4 {[%emt 0:00:53]} Rb6 {[%emt 0:05:35]} 19. Nf3 {[%emt 0:11:45]} Qa5 {[%emt 0:13:21]} 20. e5 {[%emt 0:10:11]} dxe5 {[%emt 0:03:54]} 21. fxe5 {[%emt 0:00:05]} Qb4 {[%emt 0:01:10]} 22. exf6+ {[%emt 0:02:19]} Nxf6 {[%emt 0:03:12]} 23. a3 {[%emt 0:21:33]} Qxb2 {[%emt 0:04:18]} 24. Qe1 {[%emt 0:01:01]} Ncxd5 {[%emt 0:12:25]} 25. Na4 {[%emt 0:01:52]} Qb5 {[%emt 0:00:48]} 26. Nxb6 {[%emt 0:00:13]} Qxb6 {[%emt 0:00:01]} 27. Rb1 {[%emt 0:01:45]} Qc6 {[%emt 0:01:38]} 28. Ng5 {[%emt 0:02:15]} Bc8 {[%emt 0:02:19]} 29. Rd1 {[%emt 0:08:03]} e6 {[%emt 0:01:57]} 30. Bxd5 {[%emt 0:01:32]} exd5 {[%emt 0:00:19]} 31. Qe7+ {[%emt 0:00:36]} Kg8 {[%emt 0:00:09]} 32. Rxf6 {[%emt 0:02:51]} 1-0

[Event "CZE-ch 2020"]
[Site "Pilsen"]
[Date "2020.08.26"]
[Round "4.11"]
[White "Kusa, Jakub"]
[Black "Cerveny, Petr"]
[Result "1/2-1/2"]
[ECO "B52"]
[WhiteElo "2239"]
[BlackElo "2340"]
[Annotator "ChessBase"]
[PlyCount "82"]
[EventDate "2020.08.23"]
[EventType "swiss"]
[EventCountry "CZE"]
[SourceTitle "playchess.com"]
[Source "ChessBase"]
[SourceQuality "1"]
[TimeControl "40/5400+30:1800+30"]

1. e4 {[%emt 0:00:00]} c5 {[%emt 0:00:00]} 2. Nf3 {[%emt 0:00:00]} d6 {[%emt 0:00:00]} 3. Bb5+ {[%emt 0:00:00]} Bd7 {[%emt 0:00:00]} 4. Bxd7+ {[%emt 0:00:06]} Qxd7 {[%emt 0:00:00]} 5. c4 {[%emt 0:00:17]} Nf6 {[%emt 0:00:00]} 6. Nc3 {[%emt 0:00:16]} Nc6 {[%emt 0:00:00]} 7. d4 {[%emt 0:00:19]} cxd4 {[%emt 0:00:00]} 8. Nxd4 {[%emt 0:00:09]} g6 {[%emt 0:00:07]} 9. f3 {[%emt 0:00:26]} Bg7 {[%emt 0:00:06]} 10. Be3 {[%emt 0:00:27]} O-O {[%emt 0:00:08]} 11. O-O {[%emt 0:00:53]} Rfc8 {[%emt 0:01:50]} 12. b3 {[%emt 0:00:53]} Qd8 {[%emt 0:06:43]} 13. Qd2 {[%emt 0:01:29]} Qa5 {[%emt 0:01:01]} 14. Rac1 {[%emt 0:02:29]} a6 {[%emt 0:00:45]} 15. Rfd1 {[%emt 0:02:42]} Nxd4 {[%emt 0:18:11]} 16. Bxd4 {[%emt 0:01:37]} b5 {[%emt 0:01:33]} 17. Bxf6 {[%emt 0:04:41]} Bxf6 {[%emt 0:01:43]} 18. Nd5 {[%emt 0:01:04]} Qxd2 {[%emt 0:00:16]} 19. Nxf6+ {[%emt 0:05:38]} Kg7 {[%emt 0:03:41]} 20. Ne8+ {[%emt 0:09:23]} Kf8 {[%emt 0:04:02]} 21. Rxd2 {[%emt 0:00:37]} Kxe8 {[%emt 0:00:06]} 22. Rdc2 {[%emt 0:00:54]} Rc5 {[%emt 0:14:24]} 23. cxb5 {[%emt 0:00:47]} Rxc2 {[%emt 0:00:36]} 24. Rxc2 {[%emt 0:00:15]} axb5 {[%emt 0:00:04]} 25. Kf2 {[%emt 0:00:57]} Kd7 {[%emt 0:01:14]} 26. Ke3 {[%emt 0:00:26]} f5 {[%emt 0:10:26]} 27. exf5 {[%emt 0:04:07]} gxf5 {[%emt 0:00:07]} 28. f4 {[%emt 0:00:35]} e5 {[%emt 0:02:34]} 29. h3 {[%emt 0:02:36]} h5 {[%emt 0:06:16]} 30. fxe5 {[%emt 0:09:03]} dxe5 {[%emt 0:00:11]} 31. Rc5 {[%emt 0:02:42]} Kd6 {[%emt 0:02:01]} 32. Rxb5 {[%emt 0:01:23]} Rxa2 {[%emt 0:00:07]} 33. Rb6+ {[%emt 0:01:12]} Kd5 {[%emt 0:08:56]} 34. Rb5+ {[%emt 0:01:19]} Kd6 {[%emt 0:00:03]} 35. Rb6+ {[%emt 0:01:25]} Kc5 {[%emt 0:00:04]} 36. Rf6 {[%emt 0:00:59]} Rxg2 {[%emt 0:16:24]} 37. Rxf5 {[%emt 0:00:32]} Kd5 {[%emt 0:00:11]} 38. Rxh5 {[%emt 0:00:56]} Rg3+ {[%emt 0:00:03]} 39. Ke2 {[%emt 0:01:03]} Rxb3 {[%emt 0:00:04]} 40. Rh4 {[%emt 0:00:43]} e4 {[%emt 0:00:17]} 41. Rh8 {[%emt 0:30:20]} Ra3 {[%emt 0:30:16]} 1/2-1/2

[Event "CZE-ch 2020"]
[Site "Pilsen"]
[Date "2020.08.26"]
[Round "4.13"]
[White "Simet, Martin"]
[Black "Kozusek, Daniel"]
[Result "1/2-1/2"]
[ECO "C02"]
[WhiteElo "2194"]
[BlackElo "2307"]
[Annotator "ChessBase"]
[PlyCount "133"]
[EventDate "2020.08.23"]
[EventType "swiss"]
[EventCountry "CZE"]
[SourceTitle "playchess.com"]
[Source "ChessBase"]
[SourceQuality "1"]
[TimeControl "40/5400+30:1800+30"]

1. e4 {[%emt 0:00:00]} c5 {[%emt 0:00:00]} 2. Nf3 {[%emt 0:00:55]} e6 {[%emt 0:00:00]} 3. c3 {[%emt 0:03:27]} d5 {[%emt 0:00:03]} 4. e5 {[%emt 0:00:16]} Nc6 {[%emt 0:00:24]} 5. d4 {[%emt 0:00:39]} Bd7 {[%emt 0:00:50]} 6. Be2 {[%emt 0:05:27]} Nge7 {[%emt 0:00:20]} 7. a3 {[%emt 0:04:51]} Nf5 {[%emt 0:01:24]} 8. b4 {[%emt 0:01:45]} cxd4 {[%emt 0:01:07]} 9. cxd4 {[%emt 0:00:07]} Qb6 {[%emt 0:00:09]} 10. Bb2 {[%emt 0:00:20]} h5 {[%emt 0:00:13]} 11. h4 {[%emt 0:15:20]} Be7 {[%emt 0:01:47]} 12. Kf1 {[%emt 0:04:35]} Rc8 {[%emt 0:00:31]} 13. Nc3 {[%emt 0:01:36]} Na5 {[%emt 0:04:33]} 14. Na4 {[%emt 0:07:25]} Qc6 {[%emt 0:00:19]} 15. Nc5 {[%emt 0:13:31]} Nc4 {[%emt 0:00:21]} 16. Bxc4 {[%emt 0:01:05]} dxc4 {[%emt 0:00:06]} 17. Bc3 {[%emt 0:03:47]} Qd5 {[%emt 0:02:10]} 18. Nxd7 {[%emt 0:02:52]} Kxd7 {[%emt 0:00:45]} 19. Qd2 {[%emt 0:04:42]} Kc7 {[%emt 0:04:32]} 20. Rd1 {[%emt 0:00:57]} Kb8 {[%emt 0:00:26]} 21. Qf4 {[%emt 0:06:51]} Rcd8 {[%emt 0:02:03]} 22. Nd2 {[%emt 0:03:23]} Qb5 {[%emt 0:05:19]} 23. Rh3 {[%emt 0:05:42]} Rd5 {[%emt 0:02:19]} 24. Kg1 {[%emt 0:02:00]} Rhd8 {[%emt 0:01:13]} 25. Nf1 {[%emt 0:00:16]} Qa4 {[%emt 0:04:01]} 26. Qf3 {[%emt 0:01:43]} Qd7 {[%emt 0:29:18]} 27. Qxh5 {[%emt 0:01:32]} Nxd4 {[%emt 0:02:40]} 28. Re1 {[%emt 0:00:24]} g6 {[%emt 0:02:42]} 29. Qg4 {[%emt 0:00:04]} Nc2 {[%emt 0:01:12]} 30. Rc1 {[%emt 0:01:12]} Nxa3 {[%emt 0:00:29]} 31. Bb2 {[%emt 0:02:26]} Nb5 {[%emt 0:00:07]} 32. Qxc4 {[%emt 0:01:35]} Rc8 {[%emt 0:01:23]} 33. Qf4 {[%emt 0:03:58]} Rxc1 {[%emt 0:00:30]} 34. Bxc1 {[%emt 0:00:01]} Rd1 {[%emt 0:01:06]} 35. Bd2 {[%emt 0:00:45]} Rb1 {[%emt 0:04:53]} 36. h5 {[%emt 0:00:26]} gxh5 {[%emt 0:01:15]} 37. Rg3 {[%emt 0:00:06]} Bd8 {[%emt 0:04:22]} 38. Qc4 {[%emt 0:00:14]} Qxd2 {[%emt 0:03:17]} 39. Rd3 {[%emt 0:00:54]} Rxb4 {[%emt 0:01:11]} 40. Nxd2 {[%emt 0:00:05]} Rxc4 41. Nxc4 {[%emt 0:30:00]} Kc8 {[%emt 0:31:37]} 42. Rf3 {[%emt 0:00:36]} a5 {[%emt 0:00:52]} 43. Rb3 {[%emt 0:00:31]} Nd4 {[%emt 0:00:21]} 44. Nd6+ {[%emt 0:00:05]} Kc7 {[%emt 0:00:05]} 45. Rxb7+ {[%emt 0:00:07]} Kc6 {[%emt 0:00:04]} 46. Rxf7 {[%emt 0:01:01]} a4 {[%emt 0:00:21]} 47. Ra7 {[%emt 0:00:11]} Ne2+ {[%emt 0:01:03]} 48. Kf1 {[%emt 0:02:57]} Nc3 {[%emt 0:00:05]} 49. Ke1 {[%emt 0:00:28]} Kd5 {[%emt 0:00:06]} 50. Kd2 {[%emt 0:00:33]} Kd4 {[%emt 0:01:57]} 51. Rd7 {[%emt 0:00:00]} Bg5+ {[%emt 0:00:00]} 52. Kc2 {[%emt 0:00:00]} Nd5 {[%emt 0:00:00]} 53. Ra7 {[%emt 0:00:00]} Kxe5 {[%emt 0:00:00]} 54. Nf7+ {[%emt 0:00:00]} Kf6 {[%emt 0:00:00]} 55. Nxg5 {[%emt 0:00:00]} Kxg5 {[%emt 0:00:00]} 56. Rxa4 {[%emt 0:00:00]} h4 {[%emt 0:00:00]} 57. Kd2 {[%emt 0:00:00]} Nf4 {[%emt 0:00:00]} 58. Ra8 {[%emt 0:00:00]} h3 {[%emt 0:00:00]} 59. Rg8+ {[%emt 0:00:00]} Kf5 {[%emt 0:00:00]} 60. gxh3 {[%emt 0:01:50]} Nxh3 {[%emt 0:00:00]} 61. Ke3 {[%emt 0:00:09]} Ng5 {[%emt 0:00:00]} 62. Rf8+ {[%emt 0:00:32]} Kg6 {[%emt 0:00:00]} 63. f4 {[%emt 0:00:13]} Nf7 {[%emt 0:00:00]} 64. Kd4 {[%emt 0:02:11]} Kg7 {[%emt 0:00:00]} 65. Ra8 {[%emt 0:00:20]} Kf6 {[%emt 0:00:00]} 66. Ra6 {[%emt 0:01:24]} Kf5 {[%emt 0:00:00]} 67. Rxe6 {[%emt 0:00:05]} 1/2-1/2

[Event "CZE-ch 2020"]
[Site "Pilsen"]
[Date "2020.08.26"]
[Round "4.14"]
[White "Brejnik, Gustav"]
[Black "Flajsman, Pavel"]
[Result "1-0"]
[ECO "D70"]
[WhiteElo "2265"]
[BlackElo "2184"]
[Annotator "ChessBase"]
[PlyCount "93"]
[EventDate "2020.08.23"]
[EventType "swiss"]
[EventCountry "CZE"]
[SourceTitle "playchess.com"]
[Source "ChessBase"]
[SourceQuality "1"]
[TimeControl "40/5400+30:1800+30"]

1. d4 {[%emt 0:00:00]} Nf6 {[%emt 0:00:00]} 2. c4 {[%emt 0:00:00]} g6 {[%emt 0:00:00]} 3. f3 {[%emt 0:00:00]} d5 {[%emt 0:00:31]} 4. cxd5 {[%emt 0:00:00]} Nxd5 {[%emt 0:00:18]} 5. e4 {[%emt 0:00:00]} Nb6 {[%emt 0:00:06]} 6. Nc3 {[%emt 0:00:12]} Bg7 {[%emt 0:00:14]} 7. Be3 {[%emt 0:00:06]} O-O {[%emt 0:04:39]} 8. Qd2 {[%emt 0:00:33]} Nc6 {[%emt 0:07:25]} 9. O-O-O {[%emt 0:00:32]} e5 {[%emt 0:03:42]} 10. d5 {[%emt 0:00:31]} Nd4 {[%emt 0:09:03]} 11. f4 {[%emt 0:00:17]} c5 {[%emt 0:00:47]} 12. dxc6 {[%emt 0:17:48]} Nxc6 {[%emt 0:04:00]} 13. Qf2 {[%emt 0:00:27]} Bd7 {[%emt 0:13:52]} 14. f5 {[%emt 0:11:45]} Nd4 {[%emt 0:13:04]} 15. Nf3 {[%emt 0:06:28]} Nxf3 {[%emt 0:14:01]} 16. gxf3 {[%emt 0:00:27]} Qc8 {[%emt 0:01:12]} 17. Kb1 {[%emt 0:01:44]} Bc6 {[%emt 0:07:26]} 18. h4 {[%emt 0:12:34]} Rd8 {[%emt 0:00:48]} 19. Bd3 {[%emt 0:00:17]} Rd7 {[%emt 0:07:15]} 20. fxg6 {[%emt 0:11:14]} fxg6 {[%emt 0:00:19]} 21. h5 {[%emt 0:00:29]} g5 {[%emt 0:03:38]} 22. Bxg5 {[%emt 0:00:37]} Qf8 {[%emt 0:01:00]} 23. h6 {[%emt 0:00:33]} Bf6 {[%emt 0:00:06]} 24. Qh4 {[%emt 0:06:31]} Rd6 {[%emt 0:04:32]} 25. Bc2 {[%emt 0:01:27]} Nd7 {[%emt 0:00:07]} 26. Bb3+ {[%emt 0:00:18]} Kh8 {[%emt 0:00:06]} 27. Rxd6 {[%emt 0:00:31]} Qxd6 {[%emt 0:00:19]} 28. Rd1 {[%emt 0:00:04]} Qe7 {[%emt 0:00:08]} 29. Rxd7 {[%emt 0:04:12]} Bxg5 {[%emt 0:00:05]} 30. Rxe7 {[%emt 0:00:04]} Bxh4 {[%emt 0:00:04]} 31. Rxe5 {[%emt 0:00:04]} Re8 {[%emt 0:03:49]} 32. Rf5 {[%emt 0:01:40]} Bf2 {[%emt 0:01:51]} 33. Rf7 {[%emt 0:02:07]} Be3 {[%emt 0:00:26]} 34. f4 {[%emt 0:00:47]} Bd4 {[%emt 0:01:03]} 35. e5 {[%emt 0:01:17]} Bc5 {[%emt 0:01:02]} 36. Bc2 {[%emt 0:00:27]} Kg8 {[%emt 0:00:11]} 37. Rg7+ {[%emt 0:00:11]} Kf8 {[%emt 0:00:15]} 38. Bb3 {[%emt 0:01:26]} Be3 {[%emt 0:00:55]} 39. Rf7+ {[%emt 0:00:36]} Kg8 {[%emt 0:00:01]} 40. Rxb7+ {[%emt 0:00:35]} Kh8 {[%emt 0:00:03]} 41. Rf7 {[%emt 0:30:10]} Rg8 {[%emt 0:04:08]} 42. Kc2 {[%emt 0:00:00]} Be8 {[%emt 0:01:15]} 43. Rf6 {[%emt 0:00:00]} Bg6+ {[%emt 0:01:01]} 44. f5 {[%emt 0:00:00]} Bxf5+ {[%emt 0:00:59]} 45. Rxf5 {[%emt 0:00:00]} Rg2+ {[%emt 0:00:03]} 46. Kd3 {[%emt 0:00:00]} Bxh6 {[%emt 0:00:03]} 47. e6 {[%emt 0:00:00]} 1-0

[Event "CZE-ch 2020"]
[Site "Pilsen"]
[Date "2020.08.26"]
[Round "4.17"]
[White "Vybiral, Zdenek"]
[Black "Havelka, Josef"]
[Result "1/2-1/2"]
[ECO "A11"]
[WhiteElo "2221"]
[BlackElo "2367"]
[Annotator "ChessBase"]
[PlyCount "73"]
[EventDate "2020.08.23"]
[EventType "swiss"]
[EventCountry "CZE"]
[SourceTitle "playchess.com"]
[Source "ChessBase"]
[SourceQuality "1"]
[TimeControl "40/5400+30:1800+30"]

1. c4 {[%emt 0:00:00]} c6 {[%emt 0:00:05]} 2. e4 {[%emt 0:00:00]} e5 {[%emt 0:01:00]} 3. Nf3 {[%emt 0:00:34]} d6 {[%emt 0:00:53]} 4. d4 {[%emt 0:00:15]} Nd7 {[%emt 0:01:06]} 5. Nc3 {[%emt 0:00:23]} Ngf6 {[%emt 0:01:06]} 6. Be2 {[%emt 0:00:26]} Be7 {[%emt 0:00:47]} 7. O-O {[%emt 0:00:26]} O-O {[%emt 0:00:39]} 8. Be3 {[%emt 0:03:05]} Ng4 {[%emt 0:03:35]} 9. Bd2 {[%emt 0:01:06]} Re8 {[%emt 0:01:37]} 10. d5 {[%emt 0:00:54]} Nf8 {[%emt 0:12:02]} 11. Ne1 {[%emt 0:14:53]} Nf6 {[%emt 0:02:30]} 12. Nd3 {[%emt 0:11:33]} Ng6 {[%emt 0:09:34]} 13. Re1 {[%emt 0:00:34]} Bf8 {[%emt 0:05:24]} 14. Bf1 {[%emt 0:00:28]} Bg4 {[%emt 0:03:04]} 15. f3 {[%emt 0:02:30]} Bd7 {[%emt 0:06:37]} 16. Be3 {[%emt 0:01:59]} Nh5 {[%emt 0:08:21]} 17. g3 {[%emt 0:00:48]} Be7 {[%emt 0:05:49]} 18. dxc6 {[%emt 0:30:08]} bxc6 {[%emt 0:00:44]} 19. c5 {[%emt 0:00:10]} Be6 {[%emt 0:17:44]} 20. f4 {[%emt 0:02:05]} exf4 {[%emt 0:01:51]} 21. gxf4 {[%emt 0:00:16]} Bh4 {[%emt 0:04:44]} 22. Qxh5 {[%emt 0:00:50]} Bxe1 {[%emt 0:00:12]} 23. Rxe1 {[%emt 0:00:14]} Bc4 {[%emt 0:03:48]} 24. cxd6 {[%emt 0:12:19]} Bxd3 {[%emt 0:02:18]} 25. Bxd3 {[%emt 0:00:06]} Qxd6 {[%emt 0:00:03]} 26. Bc4 {[%emt 0:00:16]} Qb4 {[%emt 0:01:01]} 27. Bb3 {[%emt 0:05:37]} a5 {[%emt 0:01:03]} 28. Rf1 {[%emt 0:05:23]} a4 {[%emt 0:01:15]} 29. Bxf7+ {[%emt 0:00:07]} Kxf7 {[%emt 0:00:07]} 30. f5 {[%emt 0:00:04]} Kg8 {[%emt 0:01:04]} 31. fxg6 {[%emt 0:00:05]} hxg6 {[%emt 0:00:12]} 32. Qxg6 {[%emt 0:00:10]} Rf8 {[%emt 0:01:17]} 33. Qe6+ {[%emt 0:03:17]} Kh8 {[%emt 0:00:08]} 34. Qh3+ {[%emt 0:00:30]} Kg8 {[%emt 0:00:09]} 35. Qe6+ {[%emt 0:00:04]} Kh8 {[%emt 0:00:04]} 36. Qh3+ {[%emt 0:01:01]} Kg8 {[%emt 0:00:06]} 37. Qe6+ {[%emt 0:00:05]} 1/2-1/2

[Event "CZE-ch 2020"]
[Site "Pilsen"]
[Date "2020.08.26"]
[Round "4.18"]
[White "Serrano Salvador, Eduardo"]
[Black "Frank, Adam"]
[Result "1-0"]
[ECO "E67"]
[WhiteElo "2299"]
[BlackElo "2219"]
[Annotator "ChessBase"]
[PlyCount "103"]
[EventDate "2020.08.23"]
[EventType "swiss"]
[EventCountry "CZE"]
[SourceTitle "playchess.com"]
[Source "ChessBase"]
[SourceQuality "1"]
[TimeControl "40/5400+30:1800+30"]

1. d4 {[%emt 0:00:00]} Nf6 {[%emt 0:00:00]} 2. Nf3 {[%emt 0:00:00]} g6 {[%emt 0:00:00]} 3. c4 {[%emt 0:00:08]} Bg7 {[%emt 0:00:00]} 4. g3 {[%emt 0:00:41]} O-O {[%emt 0:00:00]} 5. Bg2 {[%emt 0:00:04]} d6 {[%emt 0:00:00]} 6. O-O {[%emt 0:00:15]} Nbd7 {[%emt 0:00:00]} 7. Nc3 {[%emt 0:00:30]} e5 {[%emt 0:00:01]} 8. h3 {[%emt 0:00:22]} c6 {[%emt 0:00:04]} 9. e4 {[%emt 0:00:15]} Qb6 {[%emt 0:00:06]} 10. c5 {[%emt 0:00:25]} dxc5 {[%emt 0:00:04]} 11. dxe5 {[%emt 0:00:13]} Ne8 {[%emt 0:00:04]} 12. Na4 {[%emt 0:02:02]} Qa6 {[%emt 0:04:19]} 13. Bg5 {[%emt 0:01:08]} b5 {[%emt 0:03:56]} 14. Nc3 {[%emt 0:01:56]} Nc7 {[%emt 0:02:06]} 15. Be7 {[%emt 0:00:11]} Re8 {[%emt 0:00:23]} 16. Bd6 {[%emt 0:00:09]} Ne6 {[%emt 0:06:21]} 17. a4 {[%emt 0:00:10]} b4 {[%emt 0:03:16]} 18. Ne2 {[%emt 0:00:06]} Nb6 {[%emt 0:04:27]} 19. Nd2 {[%emt 0:03:10]} Nd8 {[%emt 0:19:58]} 20. f4 {[%emt 0:04:35]} Nb7 {[%emt 0:00:33]} 21. a5 {[%emt 0:02:22]} Nc4 {[%emt 0:01:18]} 22. Nxc4 {[%emt 0:02:12]} Qxc4 {[%emt 0:00:30]} 23. Rc1 {[%emt 0:01:45]} Qb5 {[%emt 0:00:27]} 24. Qc2 {[%emt 0:05:04]} Nxd6 {[%emt 0:20:31]} 25. exd6 {[%emt 0:00:12]} Ba6 {[%emt 0:00:03]} 26. Rfe1 {[%emt 0:03:07]} c4 {[%emt 0:01:02]} 27. e5 {[%emt 0:00:56]} Qc5+ {[%emt 0:00:38]} 28. Kh2 {[%emt 0:00:51]} Rad8 {[%emt 0:04:41]} 29. Rcd1 {[%emt 0:05:41]} f6 {[%emt 0:03:14]} 30. d7 {[%emt 0:04:24]} Re7 {[%emt 0:02:02]} 31. Nd4 {[%emt 0:00:08]} b3 {[%emt 0:11:59]} 32. Nxb3 {[%emt 0:02:13]} Qb4 {[%emt 0:00:03]} 33. Nd4 {[%emt 0:00:56]} Bb7 {[%emt 0:01:21]} 34. e6 {[%emt 0:04:51]} f5 {[%emt 0:01:00]} 35. a6 {[%emt 0:03:14]} Ba8 {[%emt 0:00:06]} 36. Re2 {[%emt 0:04:45]} Qc5 {[%emt 0:04:11]} 37. Nf3 {[%emt 0:02:48]} h6 {[%emt 0:02:13]} 38. Nd2 {[%emt 0:00:39]} c3 {[%emt 0:02:16]} 39. bxc3 {[%emt 0:00:22]} Qb5 {[%emt 0:00:04]} 40. Nb3 {[%emt 0:05:10]} Qxa6 {[%emt 0:01:51]} 41. Qd3 {[%emt 0:30:42]} Qb6 {[%emt 0:33:15]} 42. Qc4 {[%emt 0:00:45]} Bf6 {[%emt 0:01:53]} 43. Nc5 {[%emt 0:02:57]} Qa5 {[%emt 0:00:00]} 44. Rd3 {[%emt 0:00:00]} Kh7 {[%emt 0:00:00]} 45. Ra2 {[%emt 0:00:00]} Qc7 {[%emt 0:00:00]} 46. Qa6 {[%emt 0:00:00]} Rg7 {[%emt 0:00:00]} 47. Qxa7 {[%emt 0:00:00]} Qxa7 48. Rxa7 {[%emt 0:00:00]} Be7 {[%emt 0:00:00]} 49. Na6 {[%emt 0:00:00]} Rgg8 {[%emt 0:00:00]} 50. Nc7 {[%emt 0:00:00]} Bc5 {[%emt 0:00:00]} 51. Rxa8 {[%emt 0:00:00]} Rxa8 {[%emt 0:00:00]} 52. Nxa8 {[%emt 0:00:00]} 1-0

[Event "CZE-ch 2020"]
[Site "Pilsen"]
[Date "2020.08.26"]
[Round "4.20"]
[White "Brozka, Karel"]
[Black "Vorisek, Jaroslav"]
[Result "1/2-1/2"]
[ECO "D31"]
[WhiteElo "1991"]
[BlackElo "2279"]
[Annotator "ChessBase"]
[PlyCount "72"]
[EventDate "2020.08.23"]
[EventType "swiss"]
[EventCountry "CZE"]
[SourceTitle "playchess.com"]
[Source "ChessBase"]
[SourceQuality "1"]
[TimeControl "40/5400+30:1800+30"]

1. d4 {[%emt 0:00:00]} d5 {[%emt 0:00:00]} 2. c4 {[%emt 0:00:05]} e6 {[%emt 0:00:04]} 3. Nc3 {[%emt 0:00:46]} a6 {[%emt 0:00:34]} 4. a4 {[%emt 0:04:59]} Bb4 {[%emt 0:09:48]} 5. Nf3 {[%emt 0:02:16]} Nf6 {[%emt 0:05:24]} 6. Bg5 {[%emt 0:00:34]} c5 {[%emt 0:09:21]} 7. Bxf6 {[%emt 0:17:49]} Qxf6 {[%emt 0:02:45]} 8. e3 {[%emt 0:00:45]} Nc6 {[%emt 0:04:26]} 9. cxd5 {[%emt 0:02:18]} exd5 {[%emt 0:00:20]} 10. Be2 {[%emt 0:00:39]} cxd4 {[%emt 0:24:41]} 11. Nxd4 {[%emt 0:03:01]} Be6 {[%emt 0:04:52]} 12. O-O {[%emt 0:07:55]} O-O {[%emt 0:04:18]} 13. Bf3 {[%emt 0:02:40]} Bd6 {[%emt 0:09:43]} 14. Bxd5 {[%emt 0:12:10]} Bxd5 {[%emt 0:11:23]} 15. Nxd5 {[%emt 0:00:58]} Qe5 {[%emt 0:00:16]} 16. Nf3 {[%emt 0:00:26]} Qxb2 {[%emt 0:00:14]} 17. Rb1 {[%emt 0:00:53]} Qa3 {[%emt 0:00:22]} 18. Rxb7 {[%emt 0:01:42]} Rab8 {[%emt 0:00:48]} 19. Rxb8 {[%emt 0:04:47]} Rxb8 {[%emt 0:00:04]} 20. Qc2 {[%emt 0:01:52]} Ne5 {[%emt 0:01:47]} 21. Nxe5 {[%emt 0:03:33]} Bxe5 {[%emt 0:00:04]} 22. Qc6 {[%emt 0:05:48]} a5 {[%emt 0:02:35]} 23. g3 {[%emt 0:02:21]} h5 {[%emt 0:01:08]} 24. h4 {[%emt 0:02:15]} g6 {[%emt 0:00:39]} 25. f4 {[%emt 0:04:12]} Bd4 {[%emt 0:05:44]} 26. Re1 {[%emt 0:09:31]} Rd8 {[%emt 0:00:01]} 27. Qc4 {[%emt 0:02:25]} Bc5 {[%emt 0:01:10]} 28. Qe4 {[%emt 0:01:18]} Qb3 {[%emt 0:00:42]} 29. Nf6+ {[%emt 0:01:08]} Kf8 {[%emt 0:00:14]} 30. Qe5 {[%emt 0:01:28]} Bb4 {[%emt 0:00:34]} 31. Rf1 {[%emt 0:03:01]} Rd1 {[%emt 0:00:49]} 32. Rxd1 {[%emt 0:01:40]} Qxd1+ {[%emt 0:00:02]} 33. Kg2 {[%emt 0:00:22]} Qe2+ {[%emt 0:00:04]} 34. Kh3 {[%emt 0:00:06]} Qf1+ {[%emt 0:00:08]} 35. Kh2 {[%emt 0:00:04]} Qf2+ {[%emt 0:00:32]} 36. Kh3 {[%emt 0:00:09]} Qf1+ {[%emt 0:01:06]} 1/2-1/2